bitfinex/quotes_ETHUSD_20220106
["timestamp","ask_amount","ask_price","bid_price","bid_amount"]
[1641494733147,0.00113685,3436.8,3436.7,5.3848494]
[1641494733941,0.00113685,3436.8,3436.7,5.35300372]
[1641494734140,0.00113685,3436.8,3436.7,8.04773697]
[1641494734339,0.00113685,3436.8,3436.7,5.39005219]
[1641494736048,3.66217075,3436.9,3436.7,5.39005219]
[1641494736291,3.66217075,3436.9,3436.8,3.15326569]
[1641494736496,3.66217075,3436.9,3436.8,0.422]
[1641494736692,0.4995,3437.0,3436.8,0.422]
[1641494736894,0.4995,3437.0,3436.9,0.7271]
[1641494737093,0.4995,3437.0,3436.9,1.48162013]
[1641494737294,0.50063684,3437.0,3436.9,1.48162013]
[1641494742147,0.50063684,3437.0,3436.9,1.4491]
[1641494742348,0.50063684,3437.0,3436.9,0.7271]
[1641494745093,0.50063684,3437.0,3436.9,1.0271]
[1641494746896,0.50063684,3437.0,3436.9,0.7271]
[1641494747098,0.50063684,3437.0,3436.0,2.03289122]
[1641494747295,0.50063684,3437.0,3436.5,1.45469]
[1641494747747,0.50063684,3437.0,3436.5,2.90922]
[1641494748048,0.50063684,3437.0,3436.6,1.596509]
[1641494748243,0.50063684,3437.0,3436.6,2.87400289]
[1641494748443,0.50063684,3437.0,3436.8,1.45457]
[1641494749244,0.50063684,3437.0,3436.8,1.75457]
[1641494749444,0.50063684,3437.0,3436.9,0.72727]
[1641494750852,1.95498784,3437.0,3436.9,0.72727]
[1641494751050,1.95498784,3437.0,3436.9,1.02727]
[1641494751496,0.50063684,3437.0,3436.9,1.02727]
[1641494751891,0.50063684,3437.0,3436.9,0.72727]
[1641494752789,0.50063684,3437.0,3436.9,1.02727]
[1641494753994,5.50063684,3437.0,3436.9,1.02727]
[1641494757848,5.50063684,3437.0,3436.9,0.72727]
[1641494760597,5.50153352,3437.0,3436.9,0.72727]
[1641494760798,5.5024302,3437.0,3436.9,0.72727]
[1641494765748,8.153405,3437.0,3436.8,4.35457]
[1641494765956,2.65256651,3436.9,3436.8,4.35457]
[1641494766594,6.9570847,3437.0,3436.8,4.35457]
[1641494766999,2.46200222,3436.9,3436.8,4.35457]
[1641494768599,2.46200222,3436.9,3436.8,5.98659432]
[1641494769199,6.95594786,3437.0,3436.8,5.98659432]
[1641494769397,6.95594786,3437.0,3436.8,7.04386137]
[1641494770056,6.95594786,3437.0,3436.8,5.98659432]
[1641494770445,1.95594786,3437.0,3436.8,5.98659432]
[1641494770846,5.0,3436.9,3436.8,5.98659432]
[1641494773049,5.0,3436.9,3436.8,4.35457]
[1641494774304,7.46191365,3436.9,3436.8,4.35457]
[1641494774905,5.0,3436.9,3436.8,4.35457]
[1641494775709,7.63991143,3436.9,3436.8,4.35457]
[1641494776104,7.63991143,3436.9,3436.5,2.17649531]
[1641494776105,2.1823013,3436.8,3436.5,2.17649531]
[1641494776605,5.8323013,3436.8,3436.3,2.90483587]
[1641494776804,2.03111751,3436.4,3436.3,2.90483587]
[1641494777005,2.03111751,3436.4,3435.8,2.47348087]
[1641494777209,2.03111751,3436.4,3436.0,1.4549]
[1641494777210,0.7274709,3436.2,3436.0,1.4549]
[1641494777409,1.3611709,3436.2,3436.0,1.4549]
[1641494779646,0.7274709,3436.2,3436.0,1.4549]
[1641494780149,0.7274709,3436.2,3436.0,4.3549]
[1641494780746,0.7274709,3436.2,3436.0,2.9]
[1641494781489,9.09071156,3436.1,3436.0,2.9]
[1641494781889,9.09071156,3436.1,3436.0,2.90454739]
[1641494781890,11.55328801,3436.1,3436.0,2.90454739]
[1641494782088,0.72774,3435.8,3435.3,2.90199375]
[1641494782289,3.63794608,3435.7,3435.3,2.90199375]
[1641494782488,2.91021008,3435.7,3435.4,0.00341054]
[1641494782990,3.63796008,3435.7,3435.4,0.00341054]
[1641494783188,0.72776,3435.6,3435.4,0.00341054]
[1641494783389,2.70015649,3435.5,3435.4,0.00341054]
[1641494783588,3.34635649,3435.5,3435.4,0.00341054]
[1641494783793,1.64974637,3435.2,3434.9,0.00625266]
[1641494783993,1.64974637,3435.2,3435.0,0.72772]
[1641494784389,1.64974637,3435.2,3434.6,1.45543]
[1641494784390,1.64974637,3435.2,3435.1,0.00511581]
[1641494784790,1.64974637,3435.2,3434.7,0.00738951]
[1641494785073,0.727731,3435.0,3434.8,0.72776]
[1641494785444,0.727731,3435.0,3434.9,0.00625266]
[1641494789207,0.7276177,3435.2,3434.9,0.00625266]
[1641494789405,1.8505366,3436.2,3435.0,0.72759]
[1641494789805,1.8505366,3436.2,3435.1,0.00511581]
[1641494789806,2.62088659,3436.0,3435.1,0.00511581]
[1641494790208,2.62088659,3436.0,3435.0,2.90568424]
[1641494790209,1.84086004,3435.8,3435.0,2.90568424]
[1641494790407,1.455236,3435.6,3435.4,0.72764]
[1641494790805,1.455236,3435.6,3435.5,0.00284212]
[1641494796900,0.7276049,3435.7,3435.5,0.00284212]
[1641494797101,4.4984,3436.3,3435.5,1.45781212]
[1641494797102,0.7274612,3436.0,3435.5,1.45781212]
[1641494797302,1.2186,3436.3,3435.5,1.45781212]
[1641494797503,0.00113685,3436.2,3435.6,0.0022737]
[1641494797703,0.00113685,3436.2,3435.9,0.72739]
[1641494798104,0.00113685,3436.2,3436.0,1.89766592]
[1641494798305,0.00113685,3436.2,3436.0,3.35239592]
[1641494798705,0.00113685,3436.2,3436.1,1.0]
[1641494799302,0.00113685,3436.2,3436.1,1.72737]
[1641494800171,5.0,3436.9,3436.1,5.04937]
[1641494800354,0.4995,3437.0,3436.1,5.04937]
[1641494800563,0.00341054,3436.8,3436.1,5.04937]
[1641494800753,0.00341054,3436.8,3436.1,0.34937]
[1641494800957,0.00284211,3436.7,3436.4,0.72721]
[1641494801154,0.00284211,3436.7,3436.5,0.422]
[1641494801356,0.00227369,3436.6,3436.5,1.1492]
[1641494802355,0.00227369,3436.6,3436.5,2.1492]
[1641494802555,0.4995,3437.0,3436.5,2.1492]
[1641494802755,0.4995,3437.0,3436.8,0.72715]
[1641494803561,0.48177369,3437.0,3436.9,0.422]
[1641494806002,3.83017633,3437.3,3437.0,0.72705]
[1641494806306,3.83017633,3437.3,3437.1,3.4026019]
[1641494806307,0.00113685,3437.2,3437.1,3.4026019]
[1641494806502,3.58017633,3437.3,3437.1,3.7026019]
[1641494806702,3.58017633,3437.3,3437.1,4.7026019]
[1641494806903,0.007,3437.6,3437.2,1.0]
[1641494807105,0.007,3437.6,3437.4,0.72699]
[1641494807303,0.007,3437.6,3437.5,3.25291786]
[1641494807559,4.37640191,3437.9,3437.6,5.3]
[1641494807759,4.37640191,3437.9,3437.7,0.422]
[1641494807958,4.15218749,3438.1,3437.7,1.64057663]
[1641494808157,0.00100949,3437.8,3437.7,1.94057663]
[1641494808563,4.15218749,3438.1,3437.7,1.94057663]
[1641494808766,4.15218749,3438.1,3437.7,2.66743663]
[1641494809161,4.15218749,3438.1,3437.8,1.0]
[1641494809358,4.15218749,3438.1,3437.9,0.422]
[1641494809759,0.25113685,3438.0,3437.9,0.422]
[1641494810163,8.749e-05,3438.1,3438.0,10.05106315]
[1641494810362,0.01066902,3438.3,3438.0,18.49661651]
[1641494810561,0.6874028,3438.8,3438.3,6.9]
[1641494810762,44.475,3439.0,3438.7,0.01201227]
[1641494810763,31.87489615,3439.0,3438.7,0.01201227]
[1641494811063,1.09078563,3439.5,3439.0,10.7891584]
[1641494811306,1.36186068,3439.7,3439.3,6.05]
[1641494811513,0.00857727,3439.9,3439.6,9.21220749]
[1641494811711,10.18742707,3440.0,3439.7,8.1]
[1641494812006,10.18742707,3440.0,3439.9,11.778]
[1641494812208,3.51806245,3440.2,3440.0,6.8]
[1641494812407,5.767e-05,3440.4,3440.3,0.84712409]
[1641494812613,3.63595208,3441.7,3440.7,0.46492409]
[1641494812809,2.18648938,3441.4,3441.1,0.46492409]
[1641494813011,2.18648938,3441.4,3441.3,5.21492409]
[1641494813208,2.18648938,3441.4,3441.3,6.16492409]
[1641494813209,2.10934809,3441.4,3441.3,6.16492409]
[1641494813409,1.98745721,3442.1,3441.6,1.21423796]
[1641494813612,1.98745721,3442.1,3441.9,0.46492409]
[1641494813811,20.21183004,3443.7,3442.1,10.05]
[1641494814121,6.05992014,3443.9,3442.1,10.05]
[1641494814122,0.46750586,3443.9,3443.6,0.01253632]
[1641494814316,6.19040679,3444.4,3443.9,34.20707177]
[1641494814512,6.19040679,3444.4,3444.1,0.46492409]
[1641494814513,3.66635131,3444.3,3444.1,0.46492409]
[1641494814714,3.66635131,3444.3,3444.1,0.27041888]
[1641494814715,3.63510131,3444.3,3444.1,0.27041888]
[1641494814913,4.88846841,3444.8,3444.2,0.01217847]
[1641494815183,4.88846841,3444.8,3444.1,0.72543]
[1641494815366,0.02,3445.0,3444.1,0.73842599]
[1641494815564,1.05321183,3444.7,3444.1,0.73842599]
[1641494815764,0.02,3445.0,3444.2,0.00284212]
[1641494816068,0.02,3445.0,3444.5,0.72562]
[1641494816468,0.02,3445.0,3444.3,0.13379914]
[1641494816469,2.73347158,3444.8,3444.3,0.13379914]
[1641494816667,0.02,3445.0,3444.3,0.13379914]
[1641494816865,1.28992301,3444.6,3444.4,0.00170527]
[1641494817865,1.28992301,3444.6,3444.0,1.58465914]
[1641494817866,1.28992301,3444.6,3444.2,0.00284212]
[1641494818266,1.28992301,3444.6,3444.1,0.00341054]
[1641494818467,1.28992301,3444.6,3444.2,0.13379914]
[1641494818668,0.00172112,3444.5,3444.2,0.13379914]
[1641494818896,0.00172112,3444.5,3444.3,0.00227369]
[1641494819302,2.32750339,3444.5,3444.3,0.00227369]
[1641494819699,2.32750339,3444.5,3443.9,0.422]
[1641494819899,2.32750339,3444.5,3444.0,0.00397896]
[1641494820098,1.42456154,3444.4,3444.0,0.00397896]
[1641494820304,1.42456154,3444.4,3443.9,0.41857896]
[1641494820501,0.00170527,3444.3,3443.9,0.41857896]
[1641494821001,0.00113684,3444.2,3444.1,0.12287017]
[1641494821603,0.00113684,3444.2,3444.0,0.12287017]
[1641494821805,0.00113684,3444.2,3443.9,6.22362038]
[1641494821806,3.48992967,3444.2,3443.9,6.22362038]
[1641494822003,3.48992967,3444.2,3443.9,5.80504142]
[1641494822404,1.05,3443.9,3443.4,3.51279325]
[1641494822664,0.7259876,3443.8,3443.4,3.46279325]
[1641494822865,3.42596588,3443.7,3443.5,0.00284212]
[1641494823663,3.42596588,3443.7,3443.2,0.00454739]
[1641494824067,3.42596588,3443.7,3443.5,1.05592032]
[1641494824263,2.21303596,3443.7,3443.5,1.05592032]
[1641494824466,2.21303596,3443.7,3443.6,0.0022737]
[1641494824666,1.05,3443.9,3443.6,0.0022737]
[1641494824864,1.05,3443.9,3443.6,0.4242737]
[1641494825266,1.05,3443.9,3443.7,0.00170528]
[1641494825567,1.05,3443.9,3443.8,0.422]
[1641494825867,1.05,3443.9,3443.8,0.42313685]
[1641494826708,0.7256824,3445.1,3443.8,0.42313685]
[1641494826900,1.09080701,3444.7,3443.8,0.42313685]
[1641494827104,0.00113685,3444.4,3443.9,0.00170527]
[1641494827299,0.00113685,3444.4,3443.9,0.42370527]
[1641494827503,1.1077633,3444.1,3443.9,0.42370527]
[1641494827703,1.1077633,3444.1,3444.0,0.00113684]
[1641494827907,2.24391966,3444.3,3444.0,0.00113684]
[1641494829001,3.35348818,3444.3,3444.0,0.00113684]
[1641494829202,0.00113685,3444.4,3444.0,0.00113684]
[1641494829404,0.00113685,3444.4,3444.1,0.72559]
[1641494829906,0.00111234,3444.2,3444.1,0.72559]
[1641494830360,0.00111234,3444.2,3444.0,0.00113684]
[1641494830563,0.00111234,3444.2,3444.1,0.72556]
[1641494830765,0.00113685,3444.4,3444.1,0.72556]
[1641494831161,0.00113685,3444.4,3444.0,0.00113684]
[1641494831360,0.13819997,3445.5,3444.0,0.00113684]
[1641494831663,1.40649651,3444.3,3444.0,0.00227369]
[1641494831961,0.01214486,3444.1,3443.1,0.00738951]
[1641494832160,0.00113684,3444.2,3444.1,2.88785514]
[1641494832465,0.01378714,3444.2,3444.1,2.88785514]
[1641494832659,3.66378714,3444.2,3444.1,2.88785514]
[1641494833061,3.65113684,3444.2,3444.1,2.88785514]
[1641494833664,0.00113684,3444.2,3444.1,2.88785514]
[1641494834322,0.7001043,3444.9,3444.1,2.88785514]
[1641494834323,2.0,3446.3,3444.3,9.1]
[1641494834519,3.03715892,3446.9,3444.3,9.1]
[1641494834520,0.13384892,3446.9,3445.8,0.01268629]
[1641494834718,0.13384892,3446.9,3445.9,0.422]
[1641494834916,0.67125172,3447.0,3445.9,0.422]
[1641494835316,2.13470374,3446.4,3445.9,0.422]
[1641494835616,0.01193689,3446.3,3446.2,5.278]
[1641494835817,0.67125172,3447.0,3446.2,1.14719]
[1641494836218,0.00341055,3446.9,3446.2,1.14719]
[1641494836416,0.00341055,3446.9,3446.5,5.278]
[1641494836615,0.67125172,3447.0,3446.6,0.422]
[1641494836816,40.0,3448.0,3446.9,5.278]
[1641494837020,40.0,3448.0,3447.0,6.7]
[1641494837215,0.00625266,3447.9,3447.1,0.422]
[1641494837665,0.00568424,3447.8,3447.1,0.422]
[1641494838053,0.00511581,3447.7,3447.1,1.422]
[1641494838256,0.00511581,3447.7,3447.4,6.72774]
[1641494838459,29.5726577,3448.0,3447.6,5.278]
[1641494838655,23.7748577,3448.0,3447.9,5.278]
[1641494838855,23.7748577,3448.0,3447.9,5.7]
[1641494839254,25.08052586,3448.0,3447.9,5.7]
[1641494839457,26.95449255,3448.0,3447.9,5.7]
[1641494839655,25.08052586,3448.0,3447.9,5.7]
[1641494839855,23.7748577,3448.0,3447.9,5.7]
[1641494840262,17.9770177,3448.0,3447.9,5.7]
[1641494840458,17.9770177,3448.0,3447.9,6.6]
[1641494840656,17.9770177,3448.0,3447.9,6.6031733]
[1641494840657,17.97842319,3448.0,3447.9,6.6031733]
[1641494840861,17.97842319,3448.0,3447.9,9.87942714]
[1641494840862,12.18060319,3448.0,3447.9,9.87942714]
[1641494841058,0.82231713,3449.3,3448.0,4.25]
[1641494841322,0.82231713,3449.3,3448.4,0.72455]
[1641494841614,0.82231713,3449.3,3448.6,5.278]
[1641494841615,2.108e-05,3448.9,3448.6,5.278]
[1641494841817,1.713e-05,3449.3,3448.9,5.278]
[1641494842020,0.07773661,3449.4,3448.9,5.278]
[1641494842021,0.01217477,3450.6,3449.3,9.7]
[1641494842221,0.01217477,3450.6,3449.9,5.278]
[1641494842414,5.2397167,3451.6,3450.1,6.6]
[1641494842614,5.2397167,3451.6,3450.4,5.278]
[1641494842819,5.2397167,3451.6,3450.5,3.59574616]
[1641494842820,0.0119369,3451.0,3450.5,3.59574616]
[1641494843016,5.2397167,3451.6,3450.9,5.278]
[1641494843217,2.7397167,3451.6,3451.3,0.72407]
[1641494843423,2.5,3452.4,3451.3,0.72407]
[1641494843424,2.5,3452.4,3451.4,0.68435361]
[1641494843618,3.8,3452.0,3451.4,5.96235361]
[1641494843914,3.8,3452.0,3451.4,5.7]
[1641494843915,0.0022737,3451.9,3451.4,5.7]
[1641494844115,2.55968914,3452.7,3451.8,5.278]
[1641494844316,2.55968914,3452.7,3452.2,5.278]
[1641494844516,0.00341054,3452.5,3452.3,1.86967]
[1641494844722,0.00341054,3452.5,3452.3,1.422]
[1641494844916,2.55968914,3452.7,3452.3,1.422]
[1641494844917,1.47442619,3452.6,3452.3,1.722]
[1641494845176,1.47442619,3452.6,3452.3,1.0]
[1641494845370,1.47840515,3452.6,3452.4,0.348]
[1641494845563,2.21163929,3452.8,3452.4,0.997]
[1641494845963,2.45968914,3453.2,3452.6,2.9]
[1641494846164,2.45968914,3453.2,3453.1,35.77441226]
[1641494846366,2.45968914,3453.2,3453.1,36.84611226]
[1641494846367,2.40968914,3453.2,3453.1,36.84611226]
[1641494846666,3.48409442,3453.6,3453.1,37.84611226]
[1641494846866,3.48409442,3453.6,3453.1,36.84611226]
[1641494847068,0.95198855,3453.8,3453.4,1.76372848]
[1641494847366,3.17374616,3453.9,3453.5,1.74517]
[1641494847564,1.47154232,3454.0,3453.5,1.79517]
[1641494847764,1.30599308,3453.7,3453.6,0.72359]
[1641494847969,1.30599308,3453.7,3453.6,0.60949961]
[1641494848164,1.30826677,3453.7,3453.5,1.44717]
[1641494848364,0.348,3453.1,3452.7,0.348]
[1641494848566,0.348,3453.1,3451.9,4.82574125]
[1641494848567,0.51264322,3452.2,3451.9,2.65478125]
[1641494848804,1.1027,3452.6,3452.0,3.03666457]
[1641494849005,1.69104983,3452.5,3452.0,3.03666457]
[1641494849203,0.01292637,3452.3,3451.7,2.89536]
[1641494849604,0.01292637,3452.3,3451.8,0.00170527]
[1641494850007,3.18667253,3452.3,3451.4,0.00227897]
[1641494850205,0.00226842,3452.2,3451.1,1.44848]
[1641494850405,0.00226842,3452.2,3451.2,0.00341582]
[1641494850612,0.01292637,3452.3,3451.2,0.00341582]
[1641494850613,0.0017,3452.1,3451.2,0.00341582]
[1641494851007,0.00113157,3452.0,3451.2,0.00341582]
[1641494851205,1.0557218,3451.0,3450.9,1.44856]
[1641494851608,6.17155069,3451.0,3450.9,8.109e-05]
[1641494852007,6.17155069,3451.0,3450.5,0.00235478]
[1641494852212,0.13819997,3450.9,3450.5,5.478e-05]
[1641494852409,3.2,3451.0,3449.9,1.44902]
[1641494852656,0.30165049,3451.0,3449.9,1.44902]
[1641494852856,0.60165049,3451.0,3450.0,0.0028969]
[1641494853056,0.8773,3451.1,3450.0,0.00454739]
[1641494853266,1.24131609,3451.3,3450.6,0.72436]
[1641494853458,2.23600439,3450.7,3450.6,0.72436]
[1641494853655,0.00322222,3452.1,3450.6,0.72436]
[1641494853860,0.00322222,3452.1,3450.6,0.7266337]
[1641494854071,0.00568423,3452.0,3450.7,0.00170527]
[1641494854356,0.00511581,3451.9,3450.7,0.00170527]
[1641494854557,0.00511581,3451.9,3451.0,0.72431]
[1641494854558,1.20517831,3451.5,3451.0,0.72431]
[1641494854756,1.20517831,3451.5,3450.7,0.00170527]
[1641494854957,0.00227369,3451.4,3450.7,0.00170527]
[1641494855155,0.00227369,3451.4,3450.5,0.00284212]
[1641494855357,5.0,3450.9,3450.5,0.00284212]
[1641494855658,0.00227369,3451.4,3450.7,0.72437]
[1641494856057,0.00170527,3451.3,3450.8,0.00113685]
[1641494856507,0.00113684,3451.2,3450.8,0.00113685]
[1641494856708,0.00113684,3451.2,3450.5,0.00284212]
[1641494856902,0.00227369,3451.4,3450.5,0.00284212]
[1641494857306,18.11,3452.5,3450.5,0.00284212]
[1641494857307,1.98578,3450.8,3450.5,0.00284212]
[1641494857504,0.8894,3450.8,3450.5,4.212e-05]
[1641494857707,0.34909473,3450.7,3449.9,0.00345266]
[1641494857907,0.0128812,3450.4,3449.1,0.00800005]
[1641494858105,0.01282538,3449.6,3448.0,3.5856828]
[1641494858304,0.48402538,3449.6,3448.2,0.72999581]
[1641494858507,1.26631942,3448.9,3448.2,2.68467577]
[1641494858702,1.26631942,3448.9,3448.2,0.67999581]
[1641494858908,0.00341054,3448.8,3448.2,0.67999581]
[1641494859303,0.00284212,3448.7,3448.2,0.67999581]
[1641494859704,0.00227369,3448.6,3448.2,0.67999581]
[1641494859905,1.89001465,3448.4,3448.2,0.67999581]
[1641494860553,0.00170527,3448.5,3448.2,0.67999581]
[1641494860767,0.00170527,3448.5,3448.0,0.6874028]
[1641494860955,0.00113685,3448.4,3448.0,0.6874028]
[1641494861263,4.82071234,3449.4,3446.5,2.89943]
[1641494861264,10.0,3448.3,3446.5,2.89943]
[1641494861461,10.0120602,3448.3,3446.5,2.89943]
[1641494861658,10.0120602,3448.3,3446.8,2.22296499]
[1641494861659,1.9881531,3447.4,3446.8,2.22296499]
[1641494861856,0.7252845,3448.1,3446.8,2.22296499]
[1641494862057,0.348,3448.1,3446.9,3.2148431]
[1641494862255,0.348,3448.1,3446.9,0.0073895]
[1641494862459,0.348,3448.1,3447.0,0.00682108]
[1641494862661,0.348,3448.1,3446.9,0.0073895]
[1641494863055,1.21035617,3448.0,3447.5,2.10542954]
[1641494863455,1.21035617,3448.0,3447.6,0.00341054]
[1641494863657,0.00105093,3448.3,3447.6,0.00341054]
[1641494864501,0.00105093,3448.3,3447.8,0.72493]
[1641494864707,0.00625266,3449.3,3447.8,1.57303]
[1641494864901,0.00625266,3449.3,3447.9,0.00170527]
[1641494865102,0.00568424,3449.2,3447.9,0.00170527]
[1641494865504,0.00511581,3449.1,3448.5,1.44938]
[1641494865703,1.32792681,3449.1,3447.8,0.00227369]
[1641494865902,2.16760831,3448.8,3448.2,2.1661718]
[1641494866102,2.16760831,3448.8,3448.2,2.1161718]
[1641494866303,0.00284212,3448.7,3448.2,2.1161718]
[1641494866509,1.27565312,3449.1,3448.2,2.1161718]
[1641494866704,1.27565312,3449.1,3448.3,0.0022737]
[1641494866904,0.00170527,3449.0,3448.3,0.0022737]
[1641494867304,1.27565312,3449.1,3448.3,0.0022737]
[1641494867305,0.00113684,3448.9,3448.3,0.0022737]
[1641494867562,1.00113684,3448.9,3448.3,0.0022737]
[1641494867767,1.00113684,3448.9,3446.3,0.1096]
[1641494867768,0.01294518,3448.6,3446.5,3.24734]
[1641494868157,0.00113685,3448.5,3446.6,0.00966319]
[1641494868360,0.00113685,3448.5,3447.4,0.72499]
[1641494868760,0.00113685,3448.5,3448.4,1.82486715]
[1641494869360,3.38628253,3450.2,3448.4,1.82486715]
[1641494869560,0.01281496,3450.3,3448.4,1.82486715]
[1641494869761,0.00625266,3449.6,3448.4,1.82486715]
[1641494869961,0.00625266,3449.6,3448.7,1.44928]
[1641494870164,0.00568424,3449.5,3448.8,3.95797385]
[1641494870362,0.14582671,3451.1,3448.9,8.85]
[1641494870560,0.15202762,3450.1,3449.8,0.72448]
[1641494870962,0.15202762,3450.1,3449.9,2.04464958]
[1641494871636,0.15202762,3450.1,3449.7,0.96658712]
[1641494872029,1.14545387,3450.5,3449.2,1.91198976]
[1641494872330,0.00511581,3450.4,3450.0,2.1771343]
[1641494872532,0.00511581,3450.4,3450.1,2.11701085]
[1641494872732,1.91844768,3451.1,3450.1,2.11701085]
[1641494872733,0.00454738,3450.3,3450.1,2.11701085]
[1641494873134,0.00397896,3450.2,3450.1,2.11701085]
[1641494873337,0.0011748,3450.4,3450.1,5.01856515]
[1641494873934,1.01827943,3451.1,3450.1,5.01856515]
[1641494874132,0.15169962,3451.4,3450.2,4.08912406]
[1641494874336,0.00454739,3451.0,3450.6,0.72429]
[1641494874733,0.00397896,3450.9,3450.6,0.72429]
[1641494875064,0.15169962,3451.4,3450.6,0.72429]
[1641494875265,1.01827943,3451.6,3450.6,0.72429]
[1641494875466,0.00284212,3451.3,3451.2,1.61214067]
[1641494876464,0.00284212,3451.3,3451.2,3.78927497]
[1641494877065,0.00284212,3451.3,3451.2,2.1771343]
[1641494877262,10.06548131,3451.3,3451.2,3.43e-05]
[1641494877463,0.01548131,3451.3,3451.2,3.43e-05]
[1641494877661,10.05,3451.2,3450.8,0.27152955]
[1641494878067,0.00170527,3451.1,3450.8,2.955e-05]
[1641494878262,1.18449216,3450.8,3450.6,2.42151422]
[1641494878467,1.18449216,3450.8,3450.0,0.56738976]
[1641494878912,1.18449216,3450.8,3450.1,0.00397896]
[1641494879518,1.18449216,3450.8,3449.7,2.57756565]
[1641494879519,10.05,3450.6,3449.7,2.57756565]
[1641494879715,0.01294268,3450.4,3448.3,3.1779473]
[1641494880013,0.01294268,3450.4,3447.9,0.348]
[1641494880014,10.05113684,3450.3,3448.4,3.07965257]
[1641494880216,10.35284211,3450.3,3448.4,0.00795793]
[1641494880411,0.00227369,3450.2,3448.4,0.00795793]
[1641494880614,2.05712582,3449.7,3449.0,2.11381028]
[1641494880812,1.39093374,3449.6,3449.0,2.11381028]
[1641494881017,0.7247861,3449.9,3449.1,0.00397897]
[1641494881413,0.00227369,3450.2,3449.1,0.00397897]
[1641494881813,0.00170527,3450.1,3450.0,2.16701353]
[1641494883068,0.00170527,3450.1,3450.0,5.01701353]
[1641494883271,0.07695547,3451.5,3450.0,2.16701353]
[1641494883665,0.99592846,3451.1,3450.0,2.89140353]
[1641494884065,0.00511581,3451.0,3450.0,2.89140353]
[1641494884264,0.00511581,3451.0,3450.7,1.66423905]
[1641494884467,0.00454738,3450.9,3450.7,1.66423905]
[1641494884870,0.07695547,3451.5,3450.8,5.798]
[1641494885069,0.07695547,3451.5,3450.8,7.4139]
[1641494885266,2.0,3451.8,3450.8,7.4139]
[1641494885267,0.00341054,3451.4,3450.8,7.4139]
[1641494885467,2.0,3451.8,3450.9,4.75]
[1641494885670,2.0,3451.8,3451.0,0.348]
[1641494885869,2.0,3451.8,3451.2,5.75]
[1641494886068,2.0,3451.8,3451.3,0.348]
[1641494886310,2.0,3451.8,3451.4,1.97284214]
[1641494886512,2.0,3451.8,3451.4,1.97454741]
[1641494886712,1.76502145,3452.5,3450.9,2.17187]
[1641494886713,1.36346749,3451.7,3451.5,0.00113685]
[1641494887109,0.7241575,3452.4,3451.1,0.72416]
[1641494887110,0.72813647,3452.4,3451.1,0.72416]
[1641494887509,1.76502145,3452.5,3451.2,0.00284212]
[1641494887510,0.00341054,3452.3,3451.2,0.00284212]
[1641494887711,0.00341054,3452.3,3451.6,1.82358046]
[1641494887910,0.00284212,3452.2,3451.2,0.00284212]
[1641494888111,1.32675563,3451.7,3451.2,0.00284212]
[1641494888312,1.32675563,3451.7,3451.0,0.00397896]
[1641494888511,1.32675563,3451.7,3450.9,0.00454739]
[1641494888714,1.32675563,3451.7,3450.0,0.348]
[1641494888715,1.32675563,3451.7,3450.1,3.53670254]
[1641494888910,2.11321276,3451.6,3450.9,1.92462105]
[1641494889110,0.7243222,3451.6,3450.9,1.92462105]
[1641494889310,0.7243222,3451.6,3451.0,0.00397896]
[1641494889615,0.76135857,3451.6,3451.0,0.00397896]
[1641494889818,1.32675563,3451.7,3451.0,0.00397896]
[1641494890264,1.32675563,3451.7,3451.6,1.88498112]
[1641494890462,0.0022737,3452.1,3451.6,1.88498112]
[1641494890861,0.00170527,3452.0,3451.6,1.88498112]
[1641494891261,0.00113685,3451.9,3451.6,1.88498112]
[1641494891469,1.20733749,3451.8,3451.0,0.72816896]
[1641494891664,1.20733749,3451.8,3451.0,0.00397896]
[1641494891665,1.93161189,3451.8,3451.0,0.00397896]
[1641494891970,1.20733749,3451.8,3450.4,0.0073895]
[1641494892764,1.14880622,3451.1,3450.4,0.0073895]
[1641494893066,1.14880622,3451.1,3450.4,2.9073895]
[1641494893467,1.14880622,3451.1,3450.5,0.00682108]
[1641494893919,0.04848386,3452.0,3450.5,0.00682108]
[1641494894115,0.04848386,3452.0,3450.8,1.01341014]
[1641494894116,0.00100833,3451.0,3450.8,1.01341014]
[1641494894617,0.00100833,3451.0,3450.9,0.00454739]
[1641494895022,0.00100833,3451.0,3450.5,1.35041372]
[1641494895023,9.45,3450.9,3450.5,1.35041372]
[1641494895322,0.76033139,3450.8,3450.6,1.35211899]
[1641494895528,8.35797831,3450.7,3450.6,1.35211899]
[1641494895719,3.60797831,3450.7,3450.6,1.35041372]
[1641494896018,3.60797831,3450.7,3450.4,2.9]
[1641494896221,3.31267321,3450.6,3450.4,2.9]
[1641494896418,0.7247139,3450.6,3450.5,0.00227369]
[1641494897020,5.25,3450.5,3450.4,2.9]
[1641494897220,8.77923285,3450.5,3450.4,2.0609]
[1641494897423,10.05,3450.4,3449.9,2.02562059]
[1641494897671,4.71092622,3450.3,3449.9,2.02562059]
[1641494897869,4.71092622,3450.3,3450.0,0.00284212]
[1641494898074,4.71092622,3450.3,3449.8,0.07695387]
[1641494898075,10.05,3450.0,3449.8,0.07695387]
[1641494898267,10.05,3450.0,3449.5,2.08174156]
[1641494898268,0.07695387,3449.8,3449.5,2.08174156]
[1641494898465,10.05,3449.6,3448.7,3.19476506]
[1641494898665,1.135051,3449.5,3448.7,3.19476506]
[1641494898865,0.72496,3449.2,3448.7,3.19476506]
[1641494899063,1.15938877,3449.0,3448.7,3.19476506]
[1641494899265,0.44393879,3449.5,3448.7,3.19476506]
[1641494899266,0.01223735,3449.6,3448.7,3.19476506]
[1641494899467,0.07695387,3449.8,3448.1,1.83277722]
[1641494899468,0.46152038,3449.5,3448.1,1.83277722]
[1641494899867,0.46152038,3449.5,3448.2,0.01023162]
[1641494900270,0.46152038,3449.5,3449.0,1.6995177]
[1641494900469,0.07695387,3449.8,3449.0,1.6995177]
[1641494900669,0.07695387,3449.8,3449.1,0.00511581]
[1641494901327,0.07695387,3449.8,3449.4,0.72453]
[1641494901629,5.387e-05,3449.8,3449.6,2.20462412]
[1641494902027,5.387e-05,3449.8,3449.7,0.00170527]
[1641494902425,5.387e-05,3449.8,3449.1,1.348]
[1641494902426,5.387e-05,3449.8,3449.5,1.4489]
[1641494902626,0.00113685,3450.2,3449.5,1.4489]
[1641494902832,0.00113685,3450.2,3449.7,2.9]
[1641494903229,0.00113685,3450.2,3449.8,0.00113684]
[1641494903628,1.42435185,3450.2,3449.8,0.00113684]
[1641494904235,4.99886316,3449.8,3449.1,2.73112392]
[1641494904432,6.8628782,3449.8,3449.1,5.92588898]